[Event "37th Belgrade Trophy 2024"]
[Site "Belgrade"]
[Date "2024.11.30"]
[Round "8.6"]
[White "Sutormin, Danila"]
[Black "Ughuzov, Ravan"]
[Result "0-1"]
[ECO "C02"]
[WhiteElo "2394"]
[BlackElo "2047"]
[Annotator "TA"]
[PlyCount "94"]
[EventDate "2024.11.23"]
[EventCountry "SRB"]
[SourceTitle "playchess.com"]
[Source "ChessBase"]
[SourceQuality "1"]
[TimeControl "40/5400+30:900+30"]

{[%evp 21,94,16,19,0,9,0,0,0,0,0,13,0,14,-7,9,0,0,-54,-38,-91,-91,-79,-28,-27,-26,-25,0,0,0,0,0,0,0,8,29,23,13,2,43,34,45,6,6,0,17,0,52,43,44,43,51,13,44,43,45,43,50,45,79,0,0,0,0,-8,0,0,0,-122,-117,-123,-118,-112,-126,-768,-356]} 1. e4 {[%emt 0:06:06]} e6 {[%emt 0:00:07]} 2. d4 {[%emt 0:00:08]} d5 {[%emt 0:00:05]} 3. e5 {[%emt 0:00:15]} c5 {[%emt 0:00:17]} 4. c3 {[%emt 0:00:06]} Nc6 {[%emt 0:00:05]} 5. Nf3 {[%emt 0:00:06]} Bd7 {[%emt 0:00:05]} 6. Be2 {[%emt 0:01:01]} Nge7 {[%emt 0:00:07]} 7. O-O {[%emt 0:01:13]} Ng6 {[%emt 0:00:05]} 8. Bd3 {[%emt 0:07:18]} cxd4 {[%emt 0:03:07]} 9. cxd4 {[%emt 0:00:17]} Qb6 {[%emt 0:00:28]} 10. Be2 {[%emt 0:14:18]} Be7 {[%emt 0:00:53]} 11. Nc3 {[%emt 0:00:40]} O-O {[%emt 0:00:16]} 12. Na4 {[%emt 0:15:09]} Qd8 {[%emt 0:01:37]} 13. Be3 {[%emt 0:00:15]} Qe8 {[%emt 0:02:24]} 14. Nc3 {[%emt 0:01:50]} f6 {[%emt 0:00:45]} 15. exf6 {[%emt 0:00:44]} Rxf6 {[%emt 0:00:31]} 16. g3 {[%emt 0:02:24]} Rc8 {[%emt 0:03:13]} 17. Re1 {[%emt 0:11:16]} h6 {[%emt 0:17:05]} 18. h4 {[%emt 0:03:55]} Bd6 {[%emt 0:04:57]} 19. Nh2 {[%emt 0:00:45]} (19. Rc1 $11) 19... Nge7 $15 {[%emt 0:03:31]} 20. Ng4 {[%emt 0:04:26]} (20. Bh5 $15 Qd8 21. Bg4) 20... Rf8 $17 {[%emt 0:03:18]} 21. Bd3 {[%emt 0:09:20] [#]} Kh8 {[%emt 0:07:54]} ({Better is} 21... Qf7 $1 $17 {Hoping for ...e5.} 22. Ne2 Nf5) 22. Rc1 {[%emt 0:01:21]} Qf7 {[%emt 0:03:58]} (22... Nf5 {simplifies} 23. Bxf5 Rxf5 24. f4 b6) 23. Ne2 {[%emt 0:04:15]} e5 {[%emt 0:03:20]} 24. Nxe5 $1 {[%emt 0:01:49]} Bxe5 {[%emt 0:00:16]} 25. dxe5 {[%emt 0:00:08]} Nxe5 {[%emt 0:00:30]} 26. Nf4 $1 {[%emt 0:03:35]} (26. Rxc8 $2 Nf3+ 27. Kh1 Rxc8 $19) 26... Bg4 {[%emt 0:05:04]} 27. Be2 {[%emt 0:00:27]} Rxc1 {[%emt 0:00:43]} 28. Bxc1 {[%emt 0:01:05]} Bxe2 {[%emt 0:02:01]} 29. Rxe2 {[%emt 0:02:33]} N7g6 {[%emt 0:05:36]} 30. Nxg6+ {[%emt 0:03:58]} (30. Nxd5 $2 Rd8 31. Re4 Rxd5 $19) 30... Nxg6 {[%emt 0:00:02]} 31. Qd4 {[%emt 0:00:18]} Ne7 $1 {[%emt 0:00:30]} 32. Qxa7 {[%emt 0:02:17]} (32. Bxh6 Nc6 (32... Nf5 33. Bxg7+ Kg8 34. Qxa7 $11) 33. Bxg7+ Kg8 $19) 32... Nc6 {[%emt 0:00:01]} (32... Nf5 $5 33. Bf4 d4 $11 (33... Nxh4 34. Bd6 $11)) 33. Qe3 {[%emt 0:01:27]} d4 {[%emt 0:02:14]} (33... Qf6 $11 34. Kg2 Nd4) 34. Qe6 $14 {[%emt 0:00:10]} Qh5 $1 {[%emt 0:01:12]} (34... Qf3 35. Qe4 $16) 35. Qe4 {[%emt 0:00:31]} d3 {[%emt 0:04:08]} 36. Re1 {[%emt 0:01:23]} (36. Qxd3 $5 Rd8 $8 37. Qe4 $14) 36... Rd8 {[%emt 0:00:25]} 37. Bd2 {[%emt 0:00:39]} Nd4 {[%emt 0:00:40]} 38. Kg2 {[%emt 0:00:01]} (38. Qxd3 $2 Nf3+ $19) 38... Nc2 {[%emt 0:01:03]} 39. Rc1 {[%emt 0:00:37]} Qf7 {[%emt 0:08:42]} 40. Bc3 {[%emt 0:01:48]} ({White should play} 40. Rd1 $16) 40... d2 $1 $11 {[%emt 0:08:09]} 41. Rd1 {[%emt 0:15:27]} (41. Rxc2 $2 d1=Q (41... d1=R 42. Re2 $11) 42. Re2 Qdd5 (42... Qxa2 $2 43. Qg6 $19) 43. Qxd5 Qxd5+ $19) 41... Ne1+ {[%emt 0:15:08]} 42. Kf1 {[%emt 0:00:00]} Nf3 {[%emt 0:00:00]} 43. Qf4 {[%emt 0:00:00]} Qh5 {[%emt 0:00:00]} 44. g4 {[%emt 0:00:19]} (44. a4 $11 Rd7 45. g4) 44... Qb5+ $17 {[%emt 0:00:00]} (44... Qxh4 $2 {too greedy.} 45. Qxf3 Qg5 46. Qf5 (46. Qxb7 Qxg4 47. Rxd2 Rxd2 $18) 46... Qxf5 47. gxf5 $18) 45. Kg2 {[%emt 0:00:04]} Ne1+ {[%emt 0:00:00]} 46. Kh2 {[%emt 0:01:25]} Qc6 {[%emt 0:00:00]} 47. f3 $2 {[%emt 0:00:29][%mdl 8192]} (47. Rxe1 $17 dxe1=N (47... dxe1=R 48. Bxe1 Rd1 49. Qf8+ Kh7 50. Qf5+ Kg8 51. Bc3 $15) 48. Bxe1) 47... Kg8 {[%emt 0:00:00]} (47... Nxf3+ $142 48. Kg3 Ne1 49. Rxd2 Rd3+ 50. Kf2 Rf3+ 51. Qxf3 Nxf3 52. Rd8+ Kh7) 0-1

[Event "37th Belgrade Trophy 2024"]
[Site "Belgrade"]
[Date "2024.11.30"]
[Round "8.7"]
[White "Pavlovic, Luka"]
[Black "Xie, Jianjun"]
[Result "0-1"]
[ECO "B25"]
[WhiteElo "2088"]
[BlackElo "2361"]
[Annotator "TA"]
[PlyCount "120"]
[EventDate "2024.11.23"]
[EventCountry "SRB"]
[SourceTitle "playchess.com"]
[Source "ChessBase"]
[SourceQuality "1"]
[TimeControl "40/5400+30:900+30"]

{[%evp 24,120,0,0,39,-15,127,61,42,15,38,23,26,29,75,0,-9,-35,0,-110,-87,-166,-176,-191,-158,-214,-151,-154,-149,-137,-132,-148,-173,-207,-224,-212,-112,-370,-365,-361,-341,-435,-417,-381,-394,-380,-395,-546,-462,-778,-803,-743,-725,-771,-491,-702,-714,-690,-741,-818,-818,-798,-798,-791,-760,-1372,-1243,-6510,-5640,-5114,-4064,-3616,-2855,-29977,-29979,-29979,-29980,-29981,-29982,-29982,-29983,-29983,-29984,-29984,-29985,-29987,-29988,-29988,-29989,-29989,-29990,-29990,-29991,-29995,-29996,-29997,-29998,-29998,-29999]} 1. e4 {[%emt 0:00:04]} c5 {[%emt 0:00:25]} 2. Nc3 {[%emt 0:00:44]} Nc6 {[%emt 0:00:13]} 3. g3 {[%emt 0:01:03]} g6 {[%emt 0:01:54]} 4. Bg2 {[%emt 0:00:27]} Bg7 {[%emt 0:00:02]} 5. f4 {[%emt 0:00:40]} d6 {[%emt 0:02:37]} 6. Nf3 {[%emt 0:00:46]} e5 {[%emt 0:14:42]} 7. d3 {[%emt 0:01:58]} Nge7 {[%emt 0:00:09]} 8. O-O {[%emt 0:01:15]} O-O {[%emt 0:00:03]} 9. Be3 {[%emt 0:06:01]} Nd4 {[%emt 0:02:04]} 10. Qd2 {[%emt 0:06:51]} Rb8 {[%emt 0:03:40]} 11. Rf2 {[%emt 0:06:50] B25: Closed Sicilian: 3 g3, lines without early Be3.} b5 {[%emt 0:03:49]} 12. Raf1 {[%emt 0:07:16]} b4 {[%emt 0:01:28]} 13. Nd1 {[%emt 0:02:25]} Nec6 {[%emt 0:10:15]} 14. c3 $146 {[%emt 0:03:59] [#]} (14. f5 $1 $14) ({Predecessor:} 14. f5 gxf5 15. Nxd4 exd4 16. Bh6 Ne5 17. Bxg7 Kxg7 18. exf5 f6 19. Rf4 Rh8 20. Nf2 {1-0 Drexel,C (2160)-Lormes,G (2013) Oberliga Sued W 0708 2007 (3.7)}) 14... Qa5 {[%emt 0:14:21] [#]} (14... Nxf3+ $1 $11 15. Rxf3 (15. Bxf3 exf4) 15... bxc3 16. bxc3 exf4 17. gxf4 f5) 15. f5 {[%emt 0:07:50]} (15. cxd4 cxd4 16. Bxd4 Nxd4 $15 (16... exd4 17. b3 $15)) (15. Nh4 $1 $16 {[%mdl 512]}) 15... Nxf3+ $14 {[%emt 0:03:02]} 16. Rxf3 {[%emt 0:07:43]} f6 {[%emt 0:01:11]} 17. g4 {[%emt 0:06:04]} Qxa2 {[%emt 0:04:18]} 18. c4 {[%emt 0:02:30]} Rb7 {[%emt 0:05:00] [#]} (18... Qa4 $11) 19. h4 {[%emt 0:12:00]} (19. g5 $1 $16) 19... Rbf7 {[%emt 0:02:26]} 20. Rg3 {[%emt 0:05:52]} Qa6 {[%emt 0:01:47]} 21. Bh6 {[%emt 0:02:15]} (21. Rh3 $11 {remains equal.}) 21... Nd4 {[%emt 0:01:06]} 22. g5 {[%emt 0:02:49]} (22. Be3 $17 {was worth a try.}) 22... fxg5 $19 {[%emt 0:01:41]} (22... gxf5 $2 23. gxf6 f4 24. Rxg7+ $18 (24. fxg7 Re8 $19)) 23. Bxg7 {[%emt 0:00:39]} Rxg7 {[%emt 0:03:58]} 24. Rxg5 {[%emt 0:01:40]} Qb7 {[%emt 0:03:55]} (24... gxf5 25. exf5 Rxf5 26. Bd5+ Kf8 27. Rxg7 Kxg7 28. Kh2 $18) 25. Ne3 {[%emt 0:02:35]} gxf5 {[%emt 0:00:16]} 26. Nxf5 {[%emt 0:00:20]} Bxf5 {[%emt 0:02:44]} 27. exf5 {[%emt 0:00:11]} Qe7 {[%emt 0:00:10]} 28. Bd5+ {[%emt 0:03:59]} Kh8 {[%emt 0:00:06]} 29. Be4 {[%emt 0:00:07]} Qf6 {[%emt 0:01:01]} ({Better is} 29... h6 $19 30. Rxg7 Qxg7+ 31. Kh2 a5) 30. Rf2 $2 {[%emt 0:01:28][%mdl 8192] [#]} (30. Rxg7 $17 Qxg7+ 31. Qg5) 30... Rfg8 $1 $19 {[%emt 0:05:37]} 31. Rfg2 {[%emt 0:00:25]} h6 {[%emt 0:00:50]} 32. Rg6 {[%emt 0:00:13]} Rxg6 {[%emt 0:00:04]} (32... Qxh4 33. Rxh6+ Rh7 34. Rxg8+ (34. Rxh4 Rxh4 35. Rxg8+ Kxg8 36. Qg5+ Kf7 37. Qxh4 Ke8 38. f6 Kf7) 34... Kxg8 35. Rxh4 Rxh4 36. Qg5+ Kf7 37. Qxh4 Ne2+ 38. Kf2) 33. fxg6 {[%emt 0:00:34]} Rxg6 {[%emt 0:00:21]} (33... Qxh4 34. Rh2 Nb3 35. Qxh6+ Qxh6 36. Rxh6+ Kg7 37. Rh7+ Kf6 38. Rd7 $15 (38. Rxa7 Nd2 $15)) 34. Rxg6 {[%emt 0:02:55]} Qxg6+ {[%emt 0:00:02]} ({Worse is} 34... Qxh4 35. Rxh6+ (35. Rxd6 Qg5+ 36. Qxg5 hxg5 $18) 35... Kg8 36. Rxh4 Ne6 37. Qh6 (37. Bd5 Kf7 38. Qh6 Ke8 39. Qxe6+ Kd8 40. Qxd6+ Ke8 41. Rh8#) 37... Kf7 38. Qg6+ Ke7 39. Rh7+) 35. Kf2 {[%emt 0:01:40]} Qf6+ {[%emt 0:00:24]} 36. Kg3 {[%emt 0:00:36]} Qf4+ {[%emt 0:02:52]} 37. Qxf4 {[%emt 0:00:54]} exf4+ {[%emt 0:00:01]} 38. Kxf4 {[%emt 0:01:06]} a5 {[%emt 0:00:05]} 39. Ke3 {[%emt 0:00:34]} Kg7 {[%emt 0:00:04]} 40. Kd2 {[%emt 0:02:27]} Kf6 {[%emt 0:00:06]} 41. h5 {[%emt 0:01:44]} Kg5 {[%emt 0:03:05]} 42. Bg6 {[%emt 0:00:11]} Ne6 {[%emt 0:00:08]} 43. Bf7 {[%emt 0:03:29]} Nf4 {[%emt 0:00:19]} 44. d4 {[%emt 0:02:02]} cxd4 {[%emt 0:00:23]} 45. b3 {[%emt 0:00:48]} Kf5 {[%emt 0:00:36]} 46. Be8 {[%emt 0:01:14]} Ke4 {[%emt 0:00:19]} 47. Bg6+ {[%emt 0:00:42]} Ke5 {[%emt 0:00:14]} ({Avoid the trap} 47... Nxg6 $2 48. hxg6 h5 49. g7 $18) 48. Be8 {[%emt 0:00:51]} Ne6 {[%emt 0:00:05]} 49. Bg6 {[%emt 0:01:48]} Nc5 {[%emt 0:00:02]} 50. Bc2 {[%emt 0:00:52]} d3 {[%emt 0:00:06]} 51. Bxd3 {[%emt 0:00:46]} Nxb3+ {[%emt 0:00:05]} 52. Kc2 {[%emt 0:00:52]} Nc5 {[%emt 0:00:06]} 53. Bg6 {[%emt 0:00:36]} Kd4 {[%emt 0:00:05]} 54. Bf7 {[%emt 0:00:15]} a4 {[%emt 0:00:03]} 55. Kb2 {[%emt 0:00:20]} a3+ {[%emt 0:00:02]} 56. Ka2 {[%emt 0:00:28]} Kc3 {[%emt 0:00:05]} 57. Bg8 {[%emt 0:00:30]} Nd3 {[%emt 0:00:20]} 58. Kb1 {[%emt 0:00:28]} b3 {[%emt 0:00:06]} 59. Bf7 {[%emt 0:00:55]} a2+ {[%emt 0:00:06]} 60. Ka1 {[%emt 0:00:10]} Nb4 {[%emt 0:00:03]} 0-1

[Event "37th Belgrade Trophy 2024"]
[Site "Belgrade"]
[Date "2024.11.30"]
[Round "8.8"]
[White "Ivanovic, Marko"]
[Black "Veleski, Robert"]
[Result "1/2-1/2"]
[ECO "A42"]
[WhiteElo "2297"]
[BlackElo "2093"]
[Annotator "RC"]
[PlyCount "103"]
[EventDate "2024.11.23"]
[EventCountry "SRB"]
[SourceTitle "playchess.com"]
[Source "ChessBase"]
[SourceQuality "1"]
[TimeControl "40/5400+30:900+30"]

1. d4 {[%emt 0:29:08]} g6 {[%emt 0:03:08]} 2. c4 {[%emt 0:00:11]} Bg7 {[%emt 0:01:00]} 3. Nc3 {[%emt 0:00:05]} d6 {[%emt 0:00:41]} 4. e4 {[%emt 0:00:06]} Nc6 {[%emt 0:00:50]} 5. d5 {[%emt 0:04:40]} Nd4 {[%emt 0:00:16]} 6. Be3 {[%emt 0:00:06]} c5 {[%emt 0:00:26]} 7. Nge2 {[%emt 0:00:05]} Nxe2 {[%emt 0:06:33]} 8. Bxe2 {[%emt 0:00:13]} Nf6 {[%emt 0:00:29]} 9. h3 {[%emt 0:03:01]} O-O {[%emt 0:00:44]} 10. O-O {[%emt 0:00:04]} a6 {[%emt 0:01:01]} 11. a4 {[%emt 0:00:02]} Rb8 {[%emt 0:01:19]} 12. Qd2 {[%emt 0:07:17]} Bd7 {[%emt 0:01:16]} 13. f4 {[%emt 0:01:37]} Ne8 {[%emt 0:01:15]} 14. Rae1 {[%emt 0:24:01]} Nc7 {[%emt 0:02:35]} 15. Kh1 {[%emt 0:09:17]} b5 {[%emt 0:01:12]} 16. axb5 {[%emt 0:00:05]} axb5 {[%emt 0:00:08]} 17. e5 {[%emt 0:00:38]} bxc4 {[%emt 0:02:21]} 18. Bxc4 {[%emt 0:03:15]} Nb5 {[%emt 0:11:22]} 19. Ne4 {[%emt 0:01:08]} f5 {[%emt 0:09:33]} 20. Ng5 {[%emt 0:04:37]} h6 {[%emt 0:07:31]} 21. Nf3 {[%emt 0:00:27]} Kh7 {[%emt 0:00:27]} 22. b3 {[%emt 0:00:28]} Qb6 {[%emt 0:04:51]} 23. Qf2 {[%emt 0:03:53]} Nc3 {[%emt 0:03:21]} 24. Qh4 {[%emt 0:00:15]} Rbe8 {[%emt 0:03:47]} 25. e6 {[%emt 0:01:10]} Bb5 {[%emt 0:00:20]} 26. Ng5+ {[%emt 0:00:05]} Kg8 {[%emt 0:00:15]} 27. Nf7 {[%emt 0:00:13]} Rxf7 {[%emt 0:05:35]} 28. exf7+ {[%emt 0:00:03]} Kxf7 {[%emt 0:00:10]} 29. Bd2 {[%emt 0:01:26]} Bxc4 {[%emt 0:02:51]} 30. bxc4 {[%emt 0:00:01]} Bf6 {[%emt 0:01:19]} 31. Qf2 {[%emt 0:04:16]} Ne4 {[%emt 0:00:38]} 32. Rxe4 {[%emt 0:00:06]} fxe4 {[%emt 0:00:06]} 33. f5 {[%emt 0:00:03]} Rg8 {[%emt 0:06:34]} 34. Bxh6 {[%emt 0:00:52]} Qb3 {[%emt 0:01:44]} 35. Bg5 {[%emt 0:02:05]} Qxc4 {[%emt 0:02:02]} 36. Bxf6 {[%emt 0:00:04]} exf6 {[%emt 0:01:46]} 37. fxg6+ {[%emt 0:00:06]} Rxg6 {[%emt 0:00:45]} 38. Qf5 {[%emt 0:00:03]} Qe2 {[%emt 0:02:13]} 39. g4 {[%emt 0:01:13]} Rh6 {[%emt 0:01:26]} 40. g5 {[%emt 0:00:37]} Rg6 {[%emt 0:01:07]} 41. h4 {[%emt 0:08:33]} c4 {[%emt 0:02:15]} 42. Rf2 {[%emt 0:07:47]} Qd1+ {[%emt 0:02:26]} 43. Kh2 {[%emt 0:01:32]} e3 {[%emt 0:03:28]} 44. Qe6+ {[%emt 0:01:32]} Kg7 {[%emt 0:00:55]} 45. Qe7+ {[%emt 0:00:55]} Kg8 {[%emt 0:01:06]} 46. Ra2 {[%emt 0:00:36]} Qd2+ {[%emt 0:02:32]} 47. Rxd2 {[%emt 0:00:01]} exd2 {[%emt 0:00:09]} 48. Qe2 {[%emt 0:00:19]} c3 {[%emt 0:00:34]} 49. Kg3 {[%emt 0:00:50]} fxg5 {[%emt 0:00:56]} 50. h5 {[%emt 0:00:01]} Rg7 {[%emt 0:02:00]} 51. h6 {[%emt 0:00:52]} Rc7 {[%emt 0:00:25]} 52. Qe6+ {[%emt 0:00:56]} 1/2-1/2

[Event "37th Belgrade Trophy 2024"]
[Site "Belgrade"]
[Date "2024.11.30"]
[Round "8.9"]
[White "Slobodiansky, Steven"]
[Black "Vulinovic, Radivoje"]
[Result "1-0"]
[ECO "C24"]
[WhiteElo "2273"]
[BlackElo "2040"]
[Annotator "ChessBase"]
[PlyCount "63"]
[EventDate "2024.11.23"]
[EventCountry "SRB"]
[SourceTitle "playchess.com"]
[Source "ChessBase"]
[SourceQuality "1"]
[TimeControl "40/5400+30:900+30"]

1. e4 {[%emt 0:00:02]} e5 {[%emt 0:00:39]} 2. Bc4 {[%emt 0:00:17]} Nf6 {[%emt 0:00:40]} 3. d4 {[%emt 0:00:59]} exd4 {[%emt 0:09:29]} 4. Nf3 {[%emt 0:00:09]} Bb4+ {[%emt 0:01:21]} 5. c3 {[%emt 0:00:07]} dxc3 {[%emt 0:00:04]} 6. bxc3 {[%emt 0:00:05]} d5 {[%emt 0:06:50]} 7. exd5 {[%emt 0:01:15]} Bd6 {[%emt 0:02:16]} 8. O-O {[%emt 0:00:20]} O-O {[%emt 0:00:04]} 9. h3 {[%emt 0:00:28]} h6 {[%emt 0:01:14]} 10. Bb3 {[%emt 0:00:50]} Bf5 {[%emt 0:00:22]} 11. c4 {[%emt 0:01:04]} Nbd7 {[%emt 0:00:19]} 12. Nc3 {[%emt 0:03:41]} a6 {[%emt 0:00:53]} 13. Nd4 {[%emt 0:03:45]} Bh7 {[%emt 0:00:26]} 14. Bc2 {[%emt 0:00:18]} Bxc2 {[%emt 0:04:01]} 15. Qxc2 {[%emt 0:00:08]} Ne5 {[%emt 0:00:20]} 16. Nce2 {[%emt 0:12:16]} Ng6 {[%emt 0:01:35]} 17. Rb1 {[%emt 0:01:58]} Rb8 {[%emt 0:00:18]} 18. Be3 {[%emt 0:04:24]} Re8 {[%emt 0:00:18]} 19. Nf5 {[%emt 0:02:29]} Bf8 {[%emt 0:01:16]} 20. a4 {[%emt 0:07:53]} a5 {[%emt 0:01:20]} 21. Rfd1 {[%emt 0:03:01]} Qd7 {[%emt 0:00:20]} 22. Neg3 {[%emt 0:02:45]} b6 {[%emt 0:03:57]} 23. Bd4 {[%emt 0:01:17]} Qd8 {[%emt 0:12:25]} 24. Qb2 {[%emt 0:03:10]} Kh7 {[%emt 0:14:28]} 25. Bxf6 {[%emt 0:08:11]} Qxf6 {[%emt 0:00:18]} 26. Qxf6 {[%emt 0:00:05]} gxf6 {[%emt 0:00:06]} 27. Nh5 {[%emt 0:00:18]} Re2 {[%emt 0:04:07]} 28. Nxf6+ {[%emt 0:00:48]} Kh8 {[%emt 0:00:16]} 29. Nd7 {[%emt 0:07:25]} Rbe8 {[%emt 0:01:59]} 30. Nxf8 {[%emt 0:00:23]} Nxf8 {[%emt 0:00:44]} 31. d6 {[%emt 0:03:03]} R2e5 {[%emt 0:04:43]} 32. dxc7 {[%emt 0:00:57]} 1-0

[Event "37th Belgrade Trophy 2024"]
[Site "Belgrade"]
[Date "2024.11.30"]
[Round "8.10"]
[White "Gevorgyan, David Sh."]
[Black "Jandric, Damjan"]
[Result "1/2-1/2"]
[ECO "E62"]
[WhiteElo "2247"]
[BlackElo "2110"]
[Annotator "RC"]
[PlyCount "147"]
[EventDate "2024.11.23"]
[EventCountry "SRB"]
[SourceTitle "playchess.com"]
[Source "ChessBase"]
[SourceQuality "1"]
[TimeControl "40/5400+30:900+30"]

1. d4 {[%emt 0:02:18]} Nf6 {[%emt 0:00:27]} 2. c4 {[%emt 0:00:25]} g6 {[%emt 0:00:07]} 3. g3 {[%emt 0:00:42]} Bg7 {[%emt 0:00:14]} 4. Bg2 {[%emt 0:00:30]} d6 {[%emt 0:00:16]} 5. Nc3 {[%emt 0:00:10]} O-O {[%emt 0:00:17]} 6. Nf3 {[%emt 0:00:06]} Nc6 {[%emt 0:00:18]} 7. O-O {[%emt 0:01:07]} e5 {[%emt 0:00:15]} 8. d5 {[%emt 0:00:08]} Nb8 {[%emt 0:00:07]} 9. c5 {[%emt 0:00:04]} Na6 {[%emt 0:01:29]} 10. cxd6 {[%emt 0:00:13]} cxd6 {[%emt 0:00:08]} 11. Nd2 {[%emt 0:00:02]} Bd7 {[%emt 0:00:58]} 12. a4 {[%emt 0:00:43]} Qe7 {[%emt 0:02:41]} 13. Nc4 {[%emt 0:08:06]} Rfc8 {[%emt 0:03:43]} 14. b3 {[%emt 0:02:16]} Ne8 {[%emt 0:09:27]} 15. Be3 {[%emt 0:27:39]} Nc5 {[%emt 0:05:36]} 16. Rc1 {[%emt 0:01:26]} b6 {[%emt 0:13:33]} 17. b4 {[%emt 0:05:26]} Na6 {[%emt 0:11:51]} 18. Qb3 {[%emt 0:00:12]} f5 {[%emt 0:02:24]} 19. Na3 {[%emt 0:06:09]} g5 {[%emt 0:00:35]} 20. Ncb5 {[%emt 0:04:20]} Nac7 {[%emt 0:02:49]} 21. Nxc7 {[%emt 0:07:58]} Nxc7 {[%emt 0:00:29]} 22. b5 {[%emt 0:00:40]} f4 {[%emt 0:01:31]} 23. Bd2 {[%emt 0:02:14]} Ne8 {[%emt 0:00:20]} 24. Rxc8 {[%emt 0:08:22]} Rxc8 {[%emt 0:03:42]} 25. Rc1 {[%emt 0:01:56]} Rxc1+ {[%emt 0:06:06]} 26. Bxc1 {[%emt 0:00:04]} Bg4 {[%emt 0:02:10]} 27. e4 {[%emt 0:05:53]} Qc7 {[%emt 0:02:34]} 28. Nc4 {[%emt 0:07:36]} Be2 {[%emt 0:01:07]} 29. Bf1 {[%emt 0:00:22]} Qxc4 {[%emt 0:00:41]} 30. Qxc4 {[%emt 0:00:04]} Bxc4 {[%emt 0:00:12]} 31. Bxc4 {[%emt 0:00:02]} Bf6 {[%emt 0:00:26]} 32. Be2 {[%emt 0:01:13]} Bd8 {[%emt 0:00:30]} 33. Bg4 {[%emt 0:00:36]} Kg7 {[%emt 0:00:44]} 34. Kg2 {[%emt 0:00:43]} Nf6 {[%emt 0:00:26]} 35. Bf5 {[%emt 0:00:14]} h6 {[%emt 0:00:35]} 36. Ba3 {[%emt 0:01:58]} Be7 {[%emt 0:00:42]} 37. Kf3 {[%emt 0:00:32]} Kf8 {[%emt 0:00:38]} 38. h3 {[%emt 0:02:18]} Kg7 {[%emt 0:00:15]} 39. Bb4 {[%emt 0:00:13]} Ne8 {[%emt 0:01:40]} 40. Bd7 {[%emt 0:01:19]} Nf6 {[%emt 0:00:07]} 41. Bf5 {[%emt 0:16:14]} Ne8 {[%emt 0:15:20]} 42. Be6 {[%emt 0:00:00]} Nf6 {[%emt 0:00:00]} 43. Bc3 {[%emt 0:00:00]} Kg6 {[%emt 0:00:00]} 44. Bf5+ {[%emt 0:00:00]} Kg7 {[%emt 0:00:00]} 45. Ke2 {[%emt 0:00:00]} Kf8 {[%emt 0:00:00]} 46. Be1 {[%emt 0:00:00]} Kg7 {[%emt 0:00:00]} 47. Kd3 {[%emt 0:00:00]} Kf8 {[%emt 0:00:00]} 48. Bg4 {[%emt 0:02:57]} Nxg4 {[%emt 0:00:00]} 49. hxg4 {[%emt 0:00:03]} fxg3 {[%emt 0:00:00]} 50. f3 {[%emt 0:01:47]} g2 {[%emt 0:00:00]} 51. Bf2 {[%emt 0:00:04]} Ke8 {[%emt 0:00:00]} 52. Ke2 {[%emt 0:00:37]} Kd7 {[%emt 0:00:00]} 53. Be3 {[%emt 0:01:08]} Kc7 {[%emt 0:00:00]} 54. Kf2 {[%emt 0:00:37]} Bf6 {[%emt 0:00:00]} 55. Kxg2 {[%emt 0:00:06]} Be7 {[%emt 0:00:00]} 56. Kf1 {[%emt 0:00:06]} Bf6 {[%emt 0:00:00]} 57. Kf2 {[%emt 0:00:05]} Be7 {[%emt 0:00:00]} 58. Ke1 {[%emt 0:00:03]} Bf6 {[%emt 0:00:00]} 59. Ke2 {[%emt 0:00:03]} Be7 {[%emt 0:00:00]} 60. Kd1 {[%emt 0:00:03]} Bf6 {[%emt 0:00:00]} 61. Kd2 {[%emt 0:00:04]} Be7 {[%emt 0:00:00]} 62. Kc1 {[%emt 0:00:07]} Bf6 {[%emt 0:00:00]} 63. Kb1 {[%emt 0:00:04]} Be7 {[%emt 0:00:00]} 64. Kc2 {[%emt 0:00:03]} Bf6 {[%emt 0:00:00]} 65. Kc3 {[%emt 0:00:07]} Be7 {[%emt 0:00:00]} 66. Kb3 {[%emt 0:00:05]} Bf6 {[%emt 0:00:00]} 67. Ka3 {[%emt 0:00:04]} Be7 {[%emt 0:00:00]} 68. Kb4 {[%emt 0:00:05]} Bf6 {[%emt 0:00:00]} 69. a5 {[%emt 0:00:05]} Be7 {[%emt 0:00:00]} 70. Ka4 {[%emt 0:00:04]} Bf6 {[%emt 0:00:00]} 71. Bd2 {[%emt 0:00:04]} Be7 {[%emt 0:00:00]} 72. Bb4 {[%emt 0:00:06]} Bf6 {[%emt 0:00:00]} 73. axb6+ {[%emt 0:03:50]} axb6 {[%emt 0:00:00]} 74. Bd2 {[%emt 0:00:05]} 1/2-1/2